Workbook

Sheet Summary Details (hidden)
A1: HRBS Affordability Calculator - Owner Occupier
A2: Summary Details
A4: This model has been identified as a material model, as defined in the Model Risk Management Policy, and therefore follows the requirements of that Policy, as follows: - Summary Details, Detailed Description and Version Control tabs are included in the spreadsheet and kept up-to-date; - Write access to the spreadsheet is password protected; - A minimum of 2 staff members are trained on how to use the model and are able to make amendments; - All output from the model is subject to review by an independent person (cannot be the preparer); and - Changes to the model are subject to review by an independent person (cannot be the person making changes).
A6: Model name: | C6: Affordability Calculator
A8: Purpose of the model: | C8: This is the Society's affordability calculator used to understand how much customers are able to borrow based on set criteria and affordability.
A10: Model Owner: | C10: Director of Lending
A12: Locations: | C12: F:\Shared reports\Calculators\Owner Occupied
A14: Staff trained on use / changes (main two): | C14: Finance Analyst - Product Pricing, Finance Manager - MI
A16: Staff notified of changes: | C16: Mortgage Sales & Mortgage Underwriting Department (request changes)
A18: Committee approving material changes: | C18: Credit Committee / Board
A20: Changes to other policies / procedures required: | C20: Lending Policy

Sheet Detailed Description (hidden)
A1: ='Summary Details'!A1 -> HRBS Affordability Calculator - Owner Occupier
A2: Detailed Description
A4: Detailed description:
A5: This is the Society's affordability calculator used when assessing affordability for owner occupier loan applications, affordability is assessed using a net free pay calculation (5% minimum required to pass) using actual income and expenditure input into the model. Expenditure is compared against ONS per the applicants specific region and household occupancy and any expenditure which is less than or equal to 105% of ONS is flagged. The loan monthly payment is calculated per input criteria and stressed using the stress rate applicable to the product length. The maximum loan available to the customer is calculated depending on the individuals income, credit history.
A7: How to use the model (if separate procedures are in place then just link to these):
A13: How the model works:
A14: ONS expenditure data is stored on the "Data" tab, using the postcode input into the model the region is found using the lookup table in the postcode summary tab, this region is then used to find the expenditure specific to that region on the ONS data tab, this is then multiplied by a weighting on the data tab, the weighting used is determined by the household occupancy input into the model. ONS expenditure is compared with actuals on the main sheet and flagged where actuals are less than or equal to 105%. Mortgage repayments are calculated on their own tab, using inputs from the calculator, this sheet is also where stress rates are updated when changed.
A16: Key points to know/check when using:
A17: The key points to ensure are correct are as follows: - Check "Pass/Refer Check" boxes, pass requires >=5% net free pay. - Review any flagged ONS differences. - Check "Repayment Type Check" box; displays "Error" if repayment type selected does not correlate with input capital/interest only values/split. -Ensure all fields completed
A19: Key points to know/check when making changes:
A20: When SVR changes, stress rates are updated in the "mortgage repayments" tab. Annually when ONS is updated, the ONS table in the "Data" tab is updated as are the household weightings on the same tab.
A22: Sources of information:
A23: The main sources of information that feed into the model are: - ONS data - Stress rates
A25: Key assumptions and judgements made:
A28: Key outputs of the model:
A29: The key outputs of the model are: - Pass/Refer - affordability outcome. - % net free pay.
A31: Key controls within the model to ensure accuracy:
A32: The key controls within the model are: - Protected cells - Read only access for underwriters - Reset macro - Check cells, data validation - Model compliance with the Model Risk Management Policy.
A34: Key to colour coded cells within the model:
A35: Blue shading: Formulated cells
A36: Green shading: Input cells
A37: Orange shading: Input cells (Dropdowns)

Sheet Version History (hidden)
A1: Date | B1: Change History | C1: Tab | D1: Version Number
A2: 2020-03-10 | B2: Added MPI Exclusive Criteria regarding LTI's and Max Loans | C2: UW
A3: 2020-04-16 | B3: Updated ONS/ Stress Rates | C3: UW
A4: 2020-06-12 | B4: Wording Row 19 "Does lending criteria allow higher income multiples to be used?"; Wales council tax aligned with grand total row | C4: UW
A5: 2021-11-16 | B5: LTI and advance limits adjusted | C5: UW
A6: 2022-01-12 | B6: Updated Stress Rates | C6: UW
A7: 2022-02-28 | B7: Updated Stress Rates | C7: UW
A8: 2022-07-12 | B8: Professionals change; Stress rates; ONS | C8: UW
A9: 2022-09-21 | B9: Updated Stress Rates | C9: UW
A10: 2022-10-14 | B10: Updated Stress Rates | C10: UW
A11: 2022-11-11 | B11: Updated Stress Rates | C11: UW
A12: 2023-01-17 | B12: Updated Stress Rates | C12: UW
A13: 2023-03-02 | B13: Changed stress from +3% to +1% | C13: UW
A14: 2023-06-30 | B14: Updated stress rates | C14: UW
A15: 2023-07-19 | B15: Updated stress rates | C15: UW
A16: 2020-04-16 | B16: Updated ONS, Stress Rates, NI Thresholds | C16: Enquiry
A17: 2020-07-22 | B17: Updated the downsizing feasibility table | C17: Enquiry
A18: 2020-10-06 | B18: Added product range drop down boxes | C18: Enquiry
A19: 2021-04-09 | B19: Combined calculators and added additional fields | C19: Enquiry
A20: 2021-11-02 | B20: Added Pillars | C20: Enquiry
A21: 2021-11-16 | B21: LTI Updates | C21: Enquiry
A22: 2021-11-25 | B22: Added professional LTI | C22: Enquiry
A23: 2022-01-12 | B23: Updated stress rates | C23: Enquiry
A24: 2022-02-28 | B24: Updated stress rates | C24: Enquiry
A25: 2022-05-16 | B25: Updated NI | C25: Enquiry
A26: 2022-07-13 | B26: Updated ONS, Stress Rates | C26: Enquiry
A27: 2022-07-21 | B27: Monthly payment shown on OO sheet is now unstressed | C27: Enquiry
A28: 2022-09-21 | B28: Updated stress rates | C28: Enquiry
A29: 2022-10-14 | B29: Updated stress rates | C29: Enquiry
A30: 2022-11-11 | B30: Updated stress rates, reversed NI change | C30: Enquiry
A31: 2022-11-15 | B31: Updated product drop down | C31: Enquiry
A32: 2022-11-24 | B32: Updated product drop down, updated for income flex and LTI criteria, and wording per EC's email | C32: Enquiry
A33: 2023-01-17 | B33: Updated stress rates | C33: Enquiry
A34: 2023-03-02 | B34: Changed stress from +3% to +1%, added self build fields | C34: Enquiry
A35: 2023-04-19 | B35: Removed transitional rules, basic rate tax payer now at 125% and higher of either 2% above payrate or 5.5% | C35: Enquiry
A36: 2023-06-30 | B36: Updated Stress Rates | C36: Enquiry
A37: 2023-07-19 | B37: Updated Stress Rates | C37: Enquiry
A38: 2023-07-26 | B38: Combined calculators
A39: 2023-07-26 | B39: Added multiple household option; overtime now taken as input value; added LTI dropdowns; payslip deductions now made before tax calculation; self supporting on BTL changed from 1.35 to 1.25 & if self supporting now excluded from DTI; DTI changed to use monthly loan & mortgage payments, previously used balance outstanding. | C39: Enquiry
A40: 2023-07-26 | B40: Removed professional & credit history questions, replaced with LTI dropdowns - max LTI per applicant is selected by user, in the background each income is multiplied by the selected LTI multiple, the two highest products are added together, with the two remaining applicants income also added in without a multiplier applied to find the max loan. | C40: UW
A41: 2023-07-26 | B41: Updated advance limits; added multiple households & applicants option (max 4); added DTI & LTI ratios; ONS is shown per household and then amalgamated for NFP calculation. | C41: UW
A42: 2023-08-03 | B42: Updated Stress Rates | D42: 1
A43: 2024-06-25 | B43: Updated council tax rates | C43: UW/Enquiry | D43: 2
B44: Split payslip deductions into pre & post tax | C44: Enquiry
B45: Updated national insurance rates in tax calculator tabs | C45: Enquiry
B46: Added 1x income multiple | C46: Enquiry
A47: 2024-08-17 | B47: Updated Stress Rates | C47: UW/Enquiry | D47: 3
A48: 2024-09-17 | B48: Adjusted the additional rate tax band from £150,000 to £125,140. | C48: Enquiry | D48: 4
A49: 2024-09-27 | B49: Updated ONS | C49: All | D49: 5
A50: 2024-11-18 | B50: Updated Stress Rates | C50: UW/Enquiry | D50: 6
A51: 2025-03-02 | B51: Added Scotland ONS, tax rates, council tax. Updated Stress Rates. | C51: UW/Enquiry | D51: 7
A52: 2025-06-20 | B52: Updated Stress Rates | C52: UW/Enquiry | D52: 8
A53: 2025-06-25 | B53: Scotland tax bands updated for 25/26 | C53: Tax Calculator | D53: 9
A54: 2025-09-12 | B54: Updated Stress Rates | C54: UW/Enquiry | D54: 10

Sheet Enquiry (hidden)
B1: Owner Occupier Referral Form
B2: Product Range:
B3: Reason for referral /area of non-compliance: | S3: Date:
X5: Pillars
X6: LTV: | Y6: =IFERROR(E36/K36,"") -> 
X7: LTI: | Y7: =F113 -> 
X8: Credit: | Y8: =E24 -> 0
X9: Afford: | Y9: =J113 -> Incomplete
X10: Prop:
A11: Self Build Only | D11: Loan required: | E11: =E36 -> 0
D12: PP/land value:
D13: Build Costs:
D14: Customer Contribution:
D15: Loan to Cost: | E15: =IFERROR(E11/(E12+E13),"") -> 
D16: LTV: | E16: =Y6 -> 
D17: Build length:
A18: Re-Referral Reason: | I18: Notes:
A19: Intro | D19: Broker Name:
D20: Company: | N20: Case Owner:
A22: Apps | D22: Surnames: | M22: Age: | Q22: Term: | S22: yrs | U22: Split:
D23: Connection:
D24: Credit Policy: | H24: Details:
A26: Property | D26: Storeys: | G26: Floor: | I26: Lease: | K26: yrs | L26: Management company: | R26: Ground Rent RPI:
D27: Property Type:
D28: Consess Purchase: | G28: Notes:
A30: Households | D30: Households being maintained: | Y30: 1st Household | Z30: =IF(ISBLANK(E$32),E$33,VLOOKUP(LEFT(E$32,2),Postcodes!$A:$B,2,FALSE)) -> 0 | AA30: =IFERROR((HLOOKUP($Z30,Data!$D$3:$N$16,14,FALSE)*VLOOKUP(E$34,Data!$C$46:$D$54,2,FALSE))+VLOOKUP($Z30,'Council tax'!$B$16:$F$27,5,FALSE),0) -> 0
E31: Subject Property | I31: Property 2 | M31: Property 3 | Q31: Property 4 | Y31: 2nd Household | Z31: =IF(ISBLANK(I$32),I$33,VLOOKUP(LEFT(I$32,2),Postcodes!$A:$B,2,FALSE)) -> 0 | AA31: =IFERROR((HLOOKUP($Z31,Data!$D$3:$N$16,14,FALSE)*VLOOKUP(I$34,Data!$C$46:$D$54,2,FALSE))+VLOOKUP($Z31,'Council tax'!$B$16:$F$27,5,FALSE),0) -> 0
D32: Postcode: | Y32: 3rd Household | Z32: =IF(ISBLANK(M$32),M$33,VLOOKUP(LEFT(M$32,2),Postcodes!$A:$B,2,FALSE)) -> 0 | AA32: =IFERROR((HLOOKUP($Z32,Data!$D$3:$N$16,14,FALSE)*VLOOKUP(M$34,Data!$C$46:$D$54,2,FALSE))+VLOOKUP($Z32,'Council tax'!$B$16:$F$27,5,FALSE),0) -> 0
D33: Region if not known: | Y33: 4th Household | Z33: =IF(ISBLANK(Q$32),Q$33,VLOOKUP(LEFT(Q$32,2),Postcodes!$A:$B,2,FALSE)) -> 0 | AA33: =IFERROR((HLOOKUP($Z33,Data!$D$3:$N$16,14,FALSE)*VLOOKUP(Q$34,Data!$C$46:$D$54,2,FALSE))+VLOOKUP($Z33,'Council tax'!$B$16:$F$27,5,FALSE),0) -> 0
D34: Occupants: | Z34: Total ONS | AA34: =SUM(AA30:AA33) -> 0
A36: Loan | D36: Loan £ | J36: Value £ | Q36: Monthly Payment: | R36: =IFERROR('Mortgage Repayments (E)'!E4,"") -> 
D37: Repayment £ | J37: Interest £ | O37: MRV:
D38: Type: | J38: Product: | S38: Pay rate:
D39: Capital Raising £ | J39: Reason:
C40: Deposit:
A42: Note: Overtime, Bonuses & Commission – Input 50% if standard 100% if Income Flex. Input ANNUAL amounts below:
A44: Employed | B44: App 1 | C44: Scotland: | D44: Title: | Q44: Time in role: | T44: Yrs | V44: Mths
D45: Basic £ | Q45: 100% allowances £
H46: Overtime, Bonuses & Commission £ | Q46: Payslip deductions; Pre-Tax £: | T46: , Post-Tax £:
B47: App 2 | C47: Scotland: | D47: Title: | Q47: Time in role: | T47: Yrs | V47: Mths | X47: =E45+R45+(I46+E74)+U59+U60+U61-R46-U46 -> 0
D48: Basic £ | Q48: 100% allowances £
H49: Overtime, Bonuses & Commission £ | Q49: Payslip deductions; Pre-Tax £: | T49: , Post-Tax £: | X49: =E48+R48+(I49+E75)+U62+U63+U64-R49-U49 -> 0
B50: App 3 | C50: Scotland: | D50: Title: | Q50: Time in role: | T50: Yrs | V50: Mths
D51: Basic £ | Q51: 100% allowances £ | X51: =E51+R51+(I52+E76)+U65+U66+U67-R52-U52 -> 0
H52: Overtime, Bonuses & Commission £ | Q52: Payslip deductions; Pre-Tax £: | T52: , Post-Tax £:
B53: App 4 | C53: Scotland: | D53: Title: | Q53: Time in role: | T53: Yrs | V53: Mths | X53: =E54+R54+(I55+E77)+U68+U69+U70-R55-U55 -> 0
D54: Basic £ | Q54: 100% allowances £
H55: Overtime, Bonuses & Commission £ | Q55: Payslip deductions; Pre-Tax £: | T55: , Post-Tax £:
A57: Self Employed | F57: Type of Business(es):
F58: Year ending:
B59: App 1 | F59: Salary £ | J59: £ | N59: £ | T59: Average £ | Y59: Use tax calculator or figure provided by broker
F60: Dividends/Net Profit £ | J60: £ | N60: £ | T60: Average £
F61: Land Prop £ | J61: £ | N61: £ | T61: Average £
B62: App 2 | F62: Salary £ | J62: £ | N62: £ | T62: Average £ | Y62: App 1 Net Pay £ | AA62: =SUM('Tax Calculator'!E38)-(U46/12) -> 0
F63: Dividends/Net Profit £ | J63: £ | N63: £ | T63: Average £
F64: Land Prop £ | J64: £ | N64: £ | T64: Average £ | Y64: App 2 Net Pay £ | AA64: =SUM('Tax Calculator'!J38)-(U49/12) -> 0
B65: App 3 | F65: Salary £ | J65: £ | N65: £ | T65: Average £
F66: Dividends/Net Profit £ | J66: £ | N66: £ | T66: Average £ | Y66: App 3 Net Pay £ | AA66: ='Tax Calculator'!O38-(U52/12) -> 0
F67: Land Prop £ | J67: £ | N67: £ | T67: Average £
B68: App 4 | F68: Salary £ | J68: £ | N68: £ | T68: Average £ | Y68: App 4 Net Pay £ | AA68: ='Tax Calculator'!T38-(U55/12) -> 0
F69: Dividends/Net Profit £ | J69: £ | N69: £ | T69: Average £
F70: Land Prop £ | J70: £ | N70: £ | T70: Average £
B71: Notes:
A72: Other | B72: Other Income (i.e. Second job, benefits payments) – Input 50% if standard 100% if Income Flex
B74: App 1 annual £ | I74: Details:
B75: App 2 annual £ | I75: Details:
B76: App 3 annual £ | I76: Details:
B77: App 4 annual £ | I77: Details:
A79: Net | F79: App 1 | K79: App 2 | P79: App 3 | U79: App 4
C80: Net Pay (£):
A82: LTI
C83: Max LTI Applicable:
A85: BTL
D86: Number of BTLs: | H86: Total Value £ | N86: Balances £ | S86: Overall LTV: | V86: =IFERROR(O86/I86,"") -> 
H87: Monthly Payment £ | N87: Total Rental £ | S87: =IF(O87="","",IF(O87<(I87*1.25),"Not Self Supporting","Self Supporting")) -> 
A89: Credit | B89: App 1 | R89: Credit card & Overdraft total outstanding £
F90: Maintenance, Loans & HP per month £ | R90: Loans total outstanding £
F91: Child Commitments £ | R91: Service Charge & ground rent £
F92: Other Expenditure £ | R92: Other monthly mortgage Payments £
R93: Total other mortgage balance outstanding £
B95: App 2 | R95: Credit card & Overdraft total outstanding £
F96: Maintenance, Loans & HP per month £ | R96: Loans total outstanding £
F97: Child Commitments £ | R97: Service Charge & ground rent £
F98: Other Expenditure £ | R98: Other monthly mortgage Payments £
R99: Total other mortgage balance outstanding £
B101: App 3 | R101: Credit card & Overdraft total outstanding £
F102: Maintenance, Loans & HP per month £ | R102: Loans total outstanding £
F103: Child Commitments £ | R103: Service Charge & ground rent £
F104: Other Expenditure £ | R104: Other monthly mortgage Payments £
R105: Total other mortgage balance outstanding £
B107: App 4 | R107: Credit card & Overdraft total outstanding £
F108: Maintenance, Loans & HP per month £ | R108: Loans total outstanding £
F109: Child Commitments £ | R109: Service Charge & ground rent £
F110: Other Expenditure £ | R110: Other monthly mortgage Payments £
R111: Total other mortgage balance outstanding £
A113: Max loan £ | C113: ='E Calc'!D60 -> 0 | E113: LTI: | F113: =IFERROR(E36/'E Calc'!K41,"") ->  | H113: Net free pay £ | J113: =IFERROR('E Calc'!D63,"Incomplete") -> Incomplete | M113: Net Free pay Pass/Fail | P113: =IFERROR('E Calc'!D64,"") ->  | S113: DTI: | U113: =IFERROR((AC113+AC114+AC115)/(SUM(X47:X53)),0) -> 0 | Y113: Credit card & Overdraft total outstanding £ | AC113: =S89+S95+S101+S107 -> 0
Y114: Annual loan commitments £ | AC114: =(G90+G96+G102+G108)*12 -> 0
A115: Other info | Y115: Annual mortgage payments £ | AC115: =((S92+S98+S104+S110)+IF(S87<>"Self Supporting",I87,0))*12 -> 0
B120: Comments from committee | H120: Result: | T120: Date:
AC124: Downsizing
Y125: Remortgage | AA125: Yes | AC125: Sale of investment property
Y126: FTB - renting | AA126: No
Y127: FTB - parents
Y128: Next Time Buyer

Sheet Affordability Calculator
B2: Affordability Assessment
O3: Input
O4: Dropdown
B5: Date
B7: Type of application | C7: House purchase
V8: LTI CALCULATION
B9: Households being maintained
X10: Income | Y10: LTI
B11: Postcode | W11: APP1 | X11: =$C$27-($C$30*12)-($C$32*12) -> 0 | Y11: =$C$23 -> 0 | Z11: =Y11*X11 -> 0
W12: APP2 | X12: =$G$27-($G$30*12)-($G$32*12) -> 0 | Y12: =$G$23 -> 0 | Z12: =Y12*X12 -> 0
B13: Region | C13: =_xlfn.IFNA(VLOOKUP(LEFT(C11, 2), Postcodes!$A$1:$B$9486, 2, FALSE),"") ->  | G13: =_xlfn.IFNA(VLOOKUP(LEFT(G11, 2), Postcodes!$A$1:$B$9486, 2, FALSE),"") ->  | K13: =_xlfn.IFNA(VLOOKUP(LEFT(K11, 2), Postcodes!$A$1:$B$9486, 2, FALSE),"") ->  | O13: =_xlfn.IFNA(VLOOKUP(LEFT(O11, 2), Postcodes!$A$1:$B$9486, 2, FALSE),"") ->  | W13: APP3 | X13: =$K$27-($K$30*12)-($K$32*12) -> 0 | Y13: =$K$23 -> 0 | Z13: 0
W14: APP4 | X14: =$O$27-($O$30*12)-($O$32*12) -> 0 | Y14: =$O$23 -> 0 | Z14: 0
B15: Occupancy
B17: ONS Weighting | C17: =IFERROR(VLOOKUP(C15,Data!$C$45:$D$54, 2, FALSE),0) -> 0 | G17: =IFERROR(VLOOKUP(G15,Data!$C$45:$D$54, 2, FALSE),0) -> 0 | K17: =IFERROR(VLOOKUP(K15,Data!$C$45:$D$54, 2, FALSE),0) -> 0 | O17: =IFERROR(VLOOKUP(O15,Data!$C$45:$D$54, 2, FALSE),0) -> 0
B19: Number of applicants
C21: Applicant 1 | G21: Applicant 2 | K21: Applicant 3 | O21: Applicant 4
B23: Max LTI Applicable
B25: Date of birth | E25: =IF((($C$5/365)+($C$40)-($C$25/365))<75, "<75", ">75") -> <75 | I25: =IF((($C$5/365)+($C$40)-($G$25/365))<75, "<75", ">75") -> <75 | M25: =IF((($C$5/365)+($C$40)-($K$25/365))<75, "<75", ">75") -> <75 | Q25: =IF((($C$5/365)+($C$40)-($O$25/365))<75, "<75", ">75") -> <75
B27: Verified Gross Income
B28: Verified (monthly) Net Income
B30: Monthly Loan Payments
B31: TOTAL credit card outstanding
B32: Credit card at 3% | C32: =C31*3% -> 0 | G32: =G31*3% -> 0 | K32: =K31*3% -> 0 | O32: =O31*3% -> 0
B34: Property Value | D34: LTV | G34: =_xlfn.NUMBERVALUE(IF(CEILING(C36/C34,0.05)<0.6,0.6,CEILING(C36/C34,0.05))) -> 
B36: Mortgage required | D36: LTV Limit | G36: =VLOOKUP($G$34,Data!$C$59:$D$66,2,FALSE) ->  | I36: LTI | K36: =C36/SUM($X$11:$X$14) -> 
B38: MAXIMUM LOAN (Using LTI) | C38: =INDEX($X$11:$X$14,MATCH(LARGE($Z$11:$Z$14,3),$Z$11:$Z$14,0))+INDEX($X$11:$X$14,MATCH(LARGE($Z$11:$Z$14,4),$Z$11:$Z$14,0))+(LARGE($Z$11:$Z$14,1)+LARGE($Z$11:$Z$14,2)) -> 0 | D38: Max Loan Check | G38: =IF(C36>MAX(G36,G36),"Mortgage Required Greater than Max Loan",IF(C36>C38,"BELOW INCOME REQUIRED","Proceed To Affordability")) ->  | I38: DTI | K38: =((($C$30+$G$30+$K$30+$O$30)*12)+($C$31+G31+K31+O31))/(C27+G27+K27+O27) -> 
B40: Number of years
B42: Repayment type | D42: Repayment Type Check | G42: =_xlfn.IFS(C42="interest only",IF(C46=C36,"","Error"),C42="capital repayment",IF(C44=C36,"","Error"),C42="Part capital repayment/Part interest only",IF(AND(C44>0,C46>0,C36-C44-C46=0),"","Error")) -> 
B44: Part capital (£) | C44: =$C$36-$C$46 -> 0
B46: Part interest only (£) | X46: ONS
B48: Product rate | X48: Grand Total ONS Figures | Y48: Actual as % of ONS | Z48: Review if under or equal to 105% of ONS
B49: Product length | R49: Totals | T49: ONS Figures
T50: H1 | U50: H2 | V50: H3 | W50: H4
B51: Child commitments | R51: Child Coms: | S51: =C51+G51+K51+O51 -> 0 | X51: =S51 -> 0 | Y51: Actuals Used
B53: Property commitments:
B54: Council tax band if known
B55: Council tax discount available
A56: 1 | B56: Gas/electrics | R56: Property Excl. 3,7,8 | S56: =SUM(C56:O57)+SUM(C59:O61) -> 0 | T56: =IF(C17=0,"",HLOOKUP($C$13, Data!$D$3:$N$17, 10, FALSE)*C17) ->  | U56: =IF(G17=0,"",HLOOKUP($G$13, Data!$D$3:$N$17, 10, FALSE)*G17) ->  | V56: =IF(K17=0,"",HLOOKUP($K$13, Data!$D$3:$N$17, 10, FALSE)*K17) ->  | W56: =IF(O17=0,"",HLOOKUP($O$13, Data!$D$3:$N$17, 10, FALSE)*O17) ->  | X56: =SUM(T56:W56) -> 0 | Y56: =S56/X56 ->  | Z56: =IF(Y56<=105%,"Review.","Do not Review") -> 
A57: 2 | B57: Water
A58: 3 | B58: Council tax | R58: Council Tax | S58: =C58+G58+K58+O58 -> 0 | T58: =IF(C17=0,"",'Council tax'!C36) ->  | U58: =IF(G17=0,"",'Council tax'!D36) ->  | V58: =IF(K17=0,"",'Council tax'!E36) ->  | W58: =IF(O17=0,"",'Council tax'!F36) ->  | X58: =SUM(T58:W58) -> 0 | Y58: =S58/X58 ->  | Z58: =IF(Y58<=105%,"Review.","Do not Review") -> 
A59: 4 | B59: Ground rent
A60: 5 | B60: Building and contents insurance
A61: 6 | B61: Property costs (repairs and maintenance)
A62: 7 | B62: Telephone/Mobile/TV packages | R62: Telephone etc | S62: =C62+G62+K62+O62 -> 0 | T62: =IF(C17=0,"",HLOOKUP($C$13, Data!$D$3:$N$17, 5, FALSE)*C17) ->  | U62: =IF(G17=0,"",HLOOKUP($G$13, Data!$D$3:$N$17, 5, FALSE)*G17) ->  | V62: =IF(K17=0,"",HLOOKUP($K$13, Data!$D$3:$N$17, 5, FALSE)*K17) ->  | W62: =IF(O17=0,"",HLOOKUP($O$13, Data!$D$3:$N$17, 5, FALSE)*O17) ->  | X62: =SUM(T62:W62) -> 0 | Y62: =S62/X62 ->  | Z62: =IF(Y62<=105%,"Review.","Do not Review") -> 
A63: 8 | B63: Other | R63: Other | S63: =C63+G63+K63+O63 -> 0 | Y63: Not Included
B65: Travel
A66: 1 | B66: Petrol | R66: Total Travel | S66: =SUM(C66:O69) -> 0 | T66: =IF(C17=0,"",HLOOKUP($C$13, Data!$D$3:$N$17, 12, FALSE)*C17) ->  | U66: =IF(G17=0,"",HLOOKUP($G$13, Data!$D$3:$N$17, 12, FALSE)*G17) ->  | V66: =IF(K17=0,"",HLOOKUP($K$13, Data!$D$3:$N$17, 12, FALSE)*K17) ->  | W66: =IF(O17=0,"",HLOOKUP($O$13, Data!$D$3:$N$17, 12, FALSE)*O17) ->  | X66: =SUM(T66:W66) -> 0 | Y66: =S66/X66 ->  | Z66: =IF(Y66<=105%,"Review.","Do not Review") -> 
A67: 2 | B67: Vehicle costs/MOT/servicing etc
A68: 3 | B68: Car insurance
A69: 4 | B69: Other (including public transport/season tickets and taxis)
B71: Food and living costs
A72: 1 | B72: Grocery shopping | R72: Grocery | S72: =C72+G72+K72+O72 -> 0 | T72: =IF(C17=0,"",HLOOKUP($C$13, Data!$D$3:$N$17, 7, FALSE)*C17) ->  | U72: =IF(G17=0,"",HLOOKUP($G$13, Data!$D$3:$N$17, 7, FALSE)*G17) ->  | V72: =IF(K17=0,"",HLOOKUP($K$13, Data!$D$3:$N$17, 7, FALSE)*K17) ->  | W72: =IF(O17=0,"",HLOOKUP($O$13, Data!$D$3:$N$17, 7, FALSE)*O17) ->  | X72: =SUM(T72:W72) -> 0 | Y72: =S72/X72 ->  | Z72: =IF(Y72<=105%,"Review.","Do not Review") -> 
A73: 2 | B73: Regular social activities | R73: Social activities | S73: =C73+G73+K73+O73 -> 0 | Y73: Not Included
A74: 3 | B74: clothing/footwear | R74: Clothing/footwear | S74: =C74+G74+K74+O74 -> 0 | T74: =IF(C17=0,"",HLOOKUP($C$13, Data!$D$3:$N$17, 4, FALSE)*C17) ->  | U74: =IF(G17=0,"",HLOOKUP($G$13, Data!$D$3:$N$17, 4, FALSE)*G17) ->  | V74: =IF(K17=0,"",HLOOKUP($K$13, Data!$D$3:$N$17, 4, FALSE)*K17) ->  | W74: =IF(O17=0,"",HLOOKUP($O$13, Data!$D$3:$N$17, 4, FALSE)*O17) ->  | X74: =SUM(T74:W74) -> 0 | Y74: =S74/X74 ->  | Z74: =IF(Y74<=105%,"Review.","Do not Review") -> 
A75: 4 | B75: Other (luxury/holidays/hobbies etc) | R75: Other etc | S75: =C75+G75+K75+O75 -> 0 | T75: =IF(C17=0,"",((HLOOKUP($C$13,Data!$D$3:$N$17,8,FALSE)+(HLOOKUP($C$13,Data!$D$3:$N$17,11,FALSE))+(HLOOKUP($C$13,Data!$D$3:$N$17,9,FALSE)))*C17)) ->  | U75: =IF(G17=0,"",((HLOOKUP($G$13,Data!$D$3:$N$17,8,FALSE)+(HLOOKUP($G$13,Data!$D$3:$N$17,11,FALSE))+(HLOOKUP($G$13,Data!$D$3:$N$17,9,FALSE)))*G17)) ->  | V75: =IF(K17=0,"",((HLOOKUP($K$13,Data!$D$3:$N$17,8,FALSE)+(HLOOKUP($K$13,Data!$D$3:$N$17,11,FALSE))+(HLOOKUP($K$13,Data!$D$3:$N$17,9,FALSE)))*K17)) ->  | W75: =IF(O17=0,"",((HLOOKUP($O$13,Data!$D$3:$N$17,8,FALSE)+(HLOOKUP($O$13,Data!$D$3:$N$17,11,FALSE))+(HLOOKUP($O$13,Data!$D$3:$N$17,9,FALSE)))*O17)) ->  | X75: =SUM(T75:W75) -> 0 | Y75: =S75/X75 ->  | Z75: =IF(Y75<=105%,"Review.","Do not Review") -> 
B78: Monthly expenditure | C78: =C51+C57+C58+C59+C60+C61+C62+C65+C63+C66+C67+C68+C71+C72+C73+C74+C75+C56+C69+C32+C30 -> 0 | G78: =G51+G57+G58+G59+G60+G61+G62+G65+G63+G66+G67+G68+G71+G72+G73+G74+G75+G56+G69+G32+G30 -> 0 | K78: =K51+K57+K58+K59+K60+K61+K62+K65+K63+K66+K67+K68+K71+K72+K73+K74+K75+K56+K69+K32+K30 -> 0 | O78: =O51+O57+O58+O59+O60+O61+O62+O65+O63+O66+O67+O68+O71+O72+O73+O74+O75+O56+O69+O32+O30 -> 0 | W78: Totals (ONS + Loans) | X78: =SUM(X51:X75)+C30+C32+G30+G32+K30+K32+O30+O32 -> 0
B81: Actual interest rate | C81: ='Mortgage Repayments (UW)'!E15 -> 0
B82: Net free pay | C82: =$C$28+$G$28+$K$28+$O$28-$C$78-$G$78-$K$78-$O$78-'Mortgage Repayments (UW)'!$E$4 ->  | W82: ONS Net Free Pay | X82: =$C$28+$G$28+K28+O28-X78-'Mortgage Repayments (UW)'!$E$4 -> 
B83: % net free pay | C83: =C82/(C28+G28+K28+O28) -> 
B84: Mortgage payment | C84: =VLOOKUP($C$42, 'Mortgage Repayments (UW)'!$M$5:$O$7, 2, FALSE) -> 
B86: Stressed interest rate | C86: ='Mortgage Repayments (UW)'!J15 ->  | D86: Pass/Refer | G86: =IFERROR(IF(C87>=((C28+G28+K28+O28)*5%), "Pass", "Refer"),"") -> 
B87: Net free pay stressed | C87: =$C$28+$G$28+$K$28+$O$28-$C$78-$G$78-$K$78-$O$78-'Mortgage Repayments (UW)'!$J$4 ->  | W87: ONS Stressed Net Free Pay | X87: =$C$28+$G$28+K28+O28-$X$78-'Mortgage Repayments (UW)'!$J$4 ->  | Y87: Pass/Refer | Z87: =IF(X87>=((C28+G28+K28+O28)*5%),"Pass","Refer") -> 
B88: % net stressed free pay | C88: =C87/(C28+G28+K28+O28) ->  | W88: % Net Stressed Free Pay | X88: =X87/(C28+G28+K28+O28) -> 
B89: Mortgage payment | C89: =VLOOKUP($C$42, 'Mortgage Repayments (UW)'!$M$5:$O$7, 3, FALSE) -> 
B92: Pass/Refer | E92: =Z87 -> 
B94: Please ensure if a Pass the Maximum Loan states Proceed to Affordability If "Refer" please call the Sales team on 01455 894084 if you need any further assistance.

Sheet Mortgage Repayments (UW) (hidden)
B2: STANDARD RATE | G2: STRESSED RATE
B4: Monthly repayment | E4: =VLOOKUP('Affordability Calculator'!$C$42, 'Mortgage Repayments (UW)'!$M$5:$N$7, 2, FALSE) ->  | G4: Monthly repayment | J4: =VLOOKUP('Affordability Calculator'!$C$42, 'Mortgage Repayments (UW)'!$M$5:$O$7, 3, FALSE) -> 
M5: capital repayment | N5: =E18 ->  | O5: =J18 -> 
M6: interest only | N6: =E24 -> 0 | O6: =J24 -> 
M7: Part capital repayment/Part interest only | N7: =E27 ->  | O7: =J27 -> 
B8: Capital Repayment | G8: Capital Repayment
C10: Mortgage amount | E10: ='Affordability Calculator'!C44 -> 0 | H10: Mortgage amount | J10: ='Affordability Calculator'!C44 -> 0 | M10: Less than 5 years | N10: 0.0789
M11: 5 years | N11: =E15 -> 0 | O11: no stress required
C12: Term | E12: ='Affordability Calculator'!$C$40 -> 0 | F12: Years | H12: Term | J12: ='Affordability Calculator'!$C$40 -> 0 | K12: Years | M12: Lifetime | N12: =E15+1% -> 0.01
E13: =E12*12 -> 0 | F13: Months | J13: =J12*12 -> 0 | K13: Months
C15: Interest Rate (APR) | E15: =TALO6 -> 0 | F15: % | H15: Interest Rate (APR) | J15: =VLOOKUP('Affordability Calculator'!C49, 'Mortgage Repayments (UW)'!M10:N12, 2, FALSE) ->  | K15: %
D16: monthly | E16: =E15/12 -> 0 | I16: monthly | J16: =J15/12 -> 
C18: Monthly Payments | E18: =-PMT(E16,E13,E10) ->  | H18: Monthly Payments | J18: =-PMT(J16,J13,J10) -> 
B23: Interest only mortgage amount | E23: ='Affordability Calculator'!C46 -> 0 | J23: ='Affordability Calculator'!C46 -> 0
B24: Interest only | E24: =(E23*E15)/12 -> 0 | G24: Interest only | J24: =(J23*J15)/12 -> 
B27: Part and part | E27: =E18+E24 ->  | J27: =J18+J24 -> 

Sheet Mortgage Repayments (E) (hidden)
B2: STANDARD RATE | G2: STRESSED RATE
B4: Monthly repayment | E4: =VLOOKUP('E Calc'!D9, 'Mortgage Repayments (E)'!$M$5:$O$7, 2, FALSE) ->  | G4: Monthly repayment | J4: =VLOOKUP('E Calc'!D9, 'Mortgage Repayments (E)'!$M$5:$O$7, 3, FALSE) ->  | N4: Standard | O4: Stressed
M5: Capital Repayment | N5: =E18 ->  | O5: =J18 -> 
M6: Interest Only | N6: =E24 -> 0 | O6: =J24 -> 
M7: Part capital repayment/Part interest only | N7: =E27 ->  | O7: =J27 -> 
B8: Capital Repayment | G8: Capital Repayment
C10: Mortgage amount | E10: =J10 -> 0 | H10: Mortgage amount | J10: ='E Calc'!D11 -> 0 | M10: 5 year Fixed | N10: ='E Calc'!D17 -> 0 | O10: no stress required
M11: Lifetime Discount/Tracker | N11: ='E Calc'!D17+1% -> 0.01
C12: Term | E12: =J12 -> 0 | F12: Years | H12: Term | J12: ='E Calc'!D7 -> 0 | K12: Years | M12: Other (all 2 & 3 year products) | N12: ='Mortgage Repayments (UW)'!$N$10 -> 0.0789
E13: =E12*12 -> 0 | F13: Months | J13: =J12*12 -> 0 | K13: Months | M13: Self-Build
C15: Interest Rate (APR) | E15: =Enquiry!T38 -> 0 | F15: % | H15: Interest Rate (APR) | J15: =VLOOKUP('E Calc'!D15, 'Mortgage Repayments (E)'!M10:N13, 2, FALSE) ->  | K15: %
D16: monthly | E16: =E15/12 -> 0 | I16: monthly | J16: =J15/12 -> 
C18: Monthly Payments | E18: =-PMT(E16,E13,E10) ->  | H18: Monthly Payments | J18: =-PMT(J16,J13,J10) -> 
B23: Interest only mortgage amount | E23: =J23 -> 0 | J23: ='E Calc'!D13 -> 0
B24: Interest only | E24: =(E23*E15)/12 -> 0 | G24: Interest only | J24: =(J23*J15)/12 -> 
B27: Part and part | E27: =E18+E24 ->  | J27: =J18+J24 -> 

Sheet Data (hidden)
C2: 2023 DATA
B3: 1 | C3: ONS Table A33/A35 Monthly expenditure | D3: North East | E3: North West | F3: Yorkshire & the Humber | G3: East Midlands | H3: West Midlands | I3: East England | J3: London | K3: South East | L3: South West | M3: Wales | N3: Scotland | R3: Standard Resi (No MRC)
B4: 2 | R4: Standard BTL (No MRC)
B5: 3 | R5: Credit Flex
B6: 4 | C6: Clothing & footwear | D6: 59.14519 | E6: 72.68989 | F6: 58.24221 | G6: 69.52946 | H6: 69.07797 | I6: 65.91754 | J6: 79.01075 | K6: 66.82052 | L6: 69.52946 | M6: 65.91754 | N6: 62.30562 | R6: Specialist Resi (MRC Referral)
B7: 5 | C7: Communication | D7: 84.42863 | E7: 95.71588 | F7: 86.68608 | G7: 93.90992 | H7: 93.45843 | I7: 101.13376 | J7: 93.00694 | K7: 97.07035 | L7: 96.61886 | M7: 91.65247 | N7: 93.90992 | R7: BTL Specialist (MRC Referral)
B8: 6 | C8: Education | R8: JBSP
B9: 7 | C9: Food & non-alcoholic drinks | D9: 250.12546 | E9: 288.50211 | F9: 266.83059 | G9: 292.11403 | H9: 283.98721 | I9: 306.11022 | J9: 305.65873 | K9: 320.10641 | L9: 296.62893 | M9: 281.27827 | N9: 274.95741 | R9: Income Flex
B10: 8 | C10: Health | D10: 20.31705 | E10: 35.21622 | F10: 36.57069 | G10: 37.92516 | H10: 46.50347 | I10: 35.21622 | J10: 37.02218 | K10: 46.05198 | L10: 35.66771 | M10: 30.24983 | N10: 29.79834 | R10: BTL JBSP
B11: 9 | C11: Household goods & services | D11: 145.37978 | E11: 139.9619 | F11: 158.92448 | G11: 142.21935 | H11: 134.54402 | I11: 153.95809 | J11: 145.37978 | K11: 162.5364 | L11: 158.47299 | M11: 125.06273 | N11: 139.9619 | R11: BTL Non Owner
B12: 10 | C12: Housing (net), fuel & power | D12: 181.95047 | E12: 218.06967 | F12: 210.84583 | G12: 207.6854 | H12: 215.36073 | I12: 232.96884 | J12: 230.71139 | K12: 246.51354 | L12: 231.61437 | M12: 218.52116 | N12: 211.74881 | R12: BTL Top Slicing
B13: 11 | C13: Miscellaneous goods and services | D13: 92.10396 | E13: 128.22316 | F13: 114.67846 | G13: 117.3874 | H13: 125.06273 | I13: 130.02912 | J13: 138.15594 | K13: 140.41339 | L13: 123.25677 | M13: 112.42101 | N13: 110.16356 | R13: Ex-Pat
B14: 12 | C14: Transport | D14: 158.0215 | E14: 186.01388 | F14: 179.69302 | G14: 191.43176 | H14: 171.11471 | I14: 205.42795 | J14: 152.15213 | K14: 236.12927 | L14: 203.1705 | M14: 178.79004 | N14: 181.95047 | R14: LTD Company
R15: Green Further Advance
C16: Total Monthy Household Expenditure | D16: =SUM(D5:D15) -> 991.47204 | E16: =SUM(E5:E15) -> 1164.39271 | F16: 1112.47136 | G16: 1152.20248 | H16: 1139.10927 | I16: 1230.76174 | J16: 1181.09784 | K16: 1315.64186 | L16: 1214.95959 | M16: 1103.89305 | N16: 1104.79603 | R16: Self Build (Arrears)
R17: Self Build (Advance)
R18: Custom Build (Arrears)
R19: Custom Build (Advance)
D20: =48*52 -> 2496 | E20: =D20/12 -> 208 | R20: Self Build (Arrears - Large Loans £750k+)
R21: Self Build (Advance - Large Loans £750k+)
C27: Table A33
C28: Household expenditure by countries and regions
C29: UK, financial year ending 2014 to financial year ending 2016
C45: Household | D45: Weighting | E45: Council tax % | F45: Children (1= yes)
C46: One adult | D46: 0.7215011287 | E46: 0.75 | F46: 0
C47: Two Adults | D47: 1.206264108 | E47: 1 | F47: 0
C48: One adult one child | D48: 0.8981376975 | E48: 0.75 | F48: 1
C49: One adult two or more children | D49: 0.9286117381 | E49: 0.75 | F49: 1
C50: Two Adults one child | D50: 1.288092551 | E50: 1 | F50: 1
C51: Two adults two children | D51: 1.425225734 | E51: 1 | F51: 1
C52: Two adults three or more children | D52: 1.574492099 | E52: 1 | F52: 1
C53: Three or more adults without children | D53: 1.427200903 | E53: 1 | F53: 0
C54: Three or more adults with children | D54: 1.474322799 | E54: 1 | F54: 1
C57: Loan sizes
C58: LTV limit | D58: Advance Limit
C59: 0.95 | D59: 400000
C60: 0.9 | D60: 500000
C61: 0.85 | D61: 600000
C62: 0.8 | D62: 800000
C63: 0.75 | D63: 800000
C64: 0.7 | D64: 1000000
C65: 0.65 | D65: 1000000
C66: 0.6 | D66: 1500000

Sheet Council tax (hidden)
B2: 24-25
A3: Annual | B3: Region | F3: D
B4: North East | F4: 2314.74
B5: South West | F5: 2298.98
B6: East Midlands | F6: 2254.79
B7: South East | F7: 2246.69
B8: North West | F8: 2239.26
B9: East England | F9: 2183.58
B10: Yorkshire & the Humber | F10: 2163
B11: West Midlands | F11: 2144.33
B12: LONDON | F12: 1894.41
B13: Wales | F13: 1997.55
B14: Scotland | F14: 1421
A16: Months | B16: Region | F16: D | G16: 1
B17: North East | F17: =F4/12 -> 192.895 | G17: 2
B18: South West | F18: =F5/12 -> 191.5816667 | G18: 3
B19: East Midlands | F19: 187.8991667 | G19: 4
B20: South East | F20: 187.2241667 | G20: 5
B21: North West | F21: 186.605 | G21: 6
B22: East England | F22: 181.965 | G22: 7
B23: Yorkshire & the Humber | F23: 180.25 | G23: 8
B24: West Midlands | F24: 178.6941667 | G24: 9
B25: LONDON | F25: 157.8675 | G25: 10
B26: Wales | F26: 166.4625 | G26: 11
B27: Scotland | F27: =F14/12 -> 118.4166667 | G27: 12
C29: House 1 | D29: House 2 | E29: House 3 | F29: House 4
B30: Region selected | C30: ='Affordability Calculator'!C13 ->  | D30: ='Affordability Calculator'!G13 ->  | E30: ='Affordability Calculator'!K13 ->  | F30: ='Affordability Calculator'!O13 -> 
C31: =VLOOKUP(C$30,$B$16:$G$27,6,FALSE) ->  | D31: =VLOOKUP(D$30,$B$16:$G$27,6,FALSE) ->  | E31: =VLOOKUP(E$30,$B$16:$G$27,6,FALSE) ->  | F31: =VLOOKUP(F$30,$B$16:$G$27,6,FALSE) -> 
B32: Band selected | C32: D | D32: D | E32: D | F32: D
C33: =HLOOKUP(C$32, $C$16:$F$27, C$31, FALSE) ->  | D33: =HLOOKUP(D$32, $C$16:$F$27, D$31, FALSE) ->  | E33: =HLOOKUP(E$32, $C$16:$F$27, E$31, FALSE) ->  | F33: =HLOOKUP(F$32, $C$16:$F$27, F$31, FALSE) -> 
B34: Remortgage | C34: =IF(OR('Affordability Calculator'!$C$7:$G$7="remortgage",'Affordability Calculator'!$C$7:$G$7="additional borrowing"), 'Affordability Calculator'!C$58, 'Council tax'!C$33) ->  | D34: =IF(OR('Affordability Calculator'!$C$7:$G$7="remortgage",'Affordability Calculator'!$C$7:$G$7="additional borrowing"), 'Affordability Calculator'!G$58, 'Council tax'!D$33) ->  | E34: =IF(OR('Affordability Calculator'!$C$7:$G$7="remortgage",'Affordability Calculator'!$C$7:$G$7="additional borrowing"), 'Affordability Calculator'!K$58, 'Council tax'!E$33) ->  | F34: =IF(OR('Affordability Calculator'!$C$7:$G$7="remortgage",'Affordability Calculator'!$C$7:$G$7="additional borrowing"), 'Affordability Calculator'!O$58, 'Council tax'!F$33) -> 
C36: =MAX(C33,C34) ->  | D36: =MAX(D33,D34) -> 

Sheet Postcodes (hidden)
A2: POSTCODE | B2: REGION | C2: Band D
A3: AB | B3: Scotland
A4: AL | B4: South East
A5: B1 | B5: West Midlands
A6: B1 | B6: West Midlands
A7: B2 | B7: West Midlands
A8: B3 | B8: West Midlands
A9: B4 | B9: West Midlands | H9: Count of REGION
A10: B5 | B10: West Midlands | H10: REGION | I10: Total
A11: B6 | B11: West Midlands | H11: East Midlands | I11: 5
A12: B7 | B12: West Midlands | H12: London | I12: 44
A13: B8 | B13: West Midlands | H13: North East | I13: 5
A14: B9 | B14: West Midlands | H14: North West | I14: 31
A15: BA | B15: South West | H15: Scotland | I15: 24
A16: BB | B16: North West | H16: South East | I16: 16
A17: BD | B17: Yorkshire & the Humber | H17: South West | I17: 12
A18: BH | B18: South West | H18: Wales | I18: 5
A19: BL | B19: North West | H19: West Midlands | I19: 19
A20: BN | B20: South East | H20: Yorkshire & the Humber | I20: 18
A21: BR | B21: London | H21: East | I21: 7
A22: BS | B22: South West | H22: Grand Total | I22: 186
A23: CA | B23: North West
A24: CB | B24: East England
A25: CF | B25: Wales
A26: CH | B26: North West
A27: CM | B27: East England
A28: CO | B28: East England
A29: CR | B29: London
A30: CT | B30: South East
A31: CV | B31: West Midlands
A32: CW | B32: North West
A33: DA | B33: South East
A34: DD | B34: Scotland
A35: DE | B35: East Midlands
A36: DG | B36: Scotland
A37: DH | B37: North East
A38: DL | B38: North East
A39: DN | B39: Yorkshire & the Humber
A40: DT | B40: South West
A41: DY | B41: West Midlands
A42: E1 | B42: London
A43: E2 | B43: London
A44: E3 | B44: London
A45: E4 | B45: London
A46: E5 | B46: London
A47: E6 | B47: London
A48: E7 | B48: London
A49: E8 | B49: London
A50: E9 | B50: London
A51: EC | B51: London
A52: EH | B52: Scotland
A53: EN | B53: London
A54: EX | B54: South West
A55: FK | B55: Scotland
A56: FY | B56: North West
A57: G1 | B57: Scotland
A58: G2 | B58: Scotland
A59: G3 | B59: Scotland
A60: G4 | B60: Scotland
A61: G5 | B61: Scotland
A62: G6 | B62: Scotland
A63: G7 | B63: Scotland
A64: G8 | B64: Scotland
A65: G9 | B65: Scotland
A66: GL | B66: South West
A67: GU | B67: London
A68: HA | B68: London
A69: HD | B69: Yorkshire & the Humber
A70: HG | B70: Yorkshire & the Humber
A71: HP | B71: South East
A72: HR | B72: West Midlands
A73: HS | B73: Scotland | H73: http://www.thegrowersshop.co.uk/delivery-terms
A74: HU | B74: Yorkshire & the Humber
A75: HX | B75: Yorkshire & the Humber
A76: IG | B76: London
A77: IP | B77: East England
A78: IV | B78: Scotland
A79: KA | B79: Scotland
A80: KT | B80: London
A81: KW | B81: Scotland
A82: KY | B82: Scotland
A83: L1 | B83: North West
A84: L2 | B84: North West
A85: L3 | B85: North West
A86: L4 | B86: North West
A87: L5 | B87: North West
A88: L6 | B88: North West
A89: L7 | B89: North West
A90: L8 | B90: North West
A91: L9 | B91: North West
A92: LA | B92: North West
A93: LD | B93: Wales
A94: LE | B94: East Midlands
A95: LL | B95: Wales
A96: LN | B96: East Midlands
A97: LS | B97: Yorkshire & the Humber
A98: LU | B98: South East
A99: M | B99: North West
A100: M1 | B100: North West
A101: M2 | B101: North West
A102: M3 | B102: North West
A103: M4 | B103: North West
A104: M5 | B104: North West
A105: M6 | B105: North West
A106: M7 | B106: North West
A107: M8 | B107: North West
A108: M9 | B108: North West
A109: ME | B109: South East
A110: MK | B110: South East
A111: ML | B111: Scotland
A112: N1 | B112: London
A113: N2 | B113: London
A114: N3 | B114: London
A115: N4 | B115: London
A116: N5 | B116: London
A117: N6 | B117: London
A118: N7 | B118: London
A119: N8 | B119: London
A120: N9 | B120: London
A121: NE | B121: North East
A122: NG | B122: East Midlands
A123: NN | B123: East Midlands
A124: NP | B124: Wales
A125: NR | B125: East England
A126: NW | B126: London
A127: OL | B127: North West
A128: OX | B128: South East
A129: PA | B129: Scotland
A130: PE | B130: East England
A131: PH | B131: Scotland
A132: PL | B132: South West
A133: PO | B133: South East
A134: PR | B134: North West
A135: RG | B135: South East
A136: RH | B136: South East
A137: RM | B137: London
A138: S1 | B138: Yorkshire & the Humber
A139: S2 | B139: Yorkshire & the Humber
A140: S3 | B140: Yorkshire & the Humber
A141: S4 | B141: Yorkshire & the Humber
A142: S5 | B142: Yorkshire & the Humber
A143: S6 | B143: Yorkshire & the Humber
A144: S7 | B144: Yorkshire & the Humber
A145: S8 | B145: Yorkshire & the Humber
A146: S9 | B146: Yorkshire & the Humber
A147: SA | B147: Wales
A148: SE | B148: London
A149: SG | B149: South East
A150: SK | B150: North West
A151: SL | B151: South East
A152: SM | B152: London
A153: SN | B153: South West
A154: SO | B154: South East
A155: SP | B155: South West
A156: SR | B156: North East
A157: SS | B157: East England
A158: ST | B158: West Midlands
A159: SW | B159: London
A160: SY | B160: West Midlands
A161: TA | B161: South West
A162: TD | B162: Scotland
A163: TF | B163: West Midlands
A164: TN | B164: South East
A165: TQ | B165: South West
A166: TR | B166: South West
A167: TS | B167: North East
A168: TW | B168: London
A169: UB | B169: London
A170: W1 | B170: London
A171: W2 | B171: London
A172: W3 | B172: London
A173: W4 | B173: London
A174: W5 | B174: London
A175: W6 | B175: London
A176: W7 | B176: London
A177: W8 | B177: London
A178: W9 | B178: London
A179: WA | B179: North West
A180: WC | B180: London
A181: WD | B181: London
A182: WF | B182: Yorkshire & the Humber
A183: WN | B183: North West
A184: WR | B184: West Midlands
A185: WS | B185: West Midlands
A186: WV | B186: West Midlands
A187: YO | B187: Yorkshire & the Humber
A188: ZE | B188: Scotland

Sheet E Calc (hidden)
C2: Affordability Calculator
B4: Loan requirements
C5: Mortgage required | D5: =Enquiry!E36 -> 0
C7: Mortgage Term in Years | D7: =Enquiry!R22 -> 0
C9: Repayment type (select from list) | D9: =IF(Enquiry!E36=Enquiry!E37,"Capital Repayment",IF(Enquiry!E36=Enquiry!K37,"Interest Only",IF(Enquiry!E36=Enquiry!E37+Enquiry!K37,"Part capital repayment/Part interest only",""))) -> Capital Repayment
C11: Capital Repayment Amount | D11: =Enquiry!E37 -> 0
C13: Interest Only Amount | D13: =Enquiry!K37 -> 0
C15: Product length (select from list) | D15: =Enquiry!K38 -> 0
C17: Product pay rate | D17: =Enquiry!T38 -> 0
B19: Income | D19: Applicant 1 | F19: Applicant 2 | G19: Applicant 3 | H19: Applicant 4 | J19: area for calculation
B21: Annual | C21: Basic Gross Salary | D21: =Enquiry!E45 -> 0 | F21: =Enquiry!E48 -> 0 | G21: =+Enquiry!E51 -> 0 | H21: =+Enquiry!E54 -> 0
B23: Annual | C23: Car, Shift & Large Town Allowance | D23: =Enquiry!R45 -> 0 | F23: =Enquiry!R48 -> 0 | G23: =+Enquiry!R51 -> 0 | H23: =+Enquiry!R54 -> 0
B25: Annual | C25: Acceptable other - Employed | D25: =Enquiry!$I$46 -> 0 | F25: =Enquiry!$I$49 -> 0 | G25: =Enquiry!$I$52 -> 0 | H25: =Enquiry!$I$55 -> 0 | L25: LTI
C27: Sole Trader/Partnership Net Profit | D27: =Enquiry!U59 -> 0 | F27: =Enquiry!U62 -> 0 | G27: =+Enquiry!U65 -> 0 | H27: =+Enquiry!U68 -> 0 | J27: APP1 | K27: =(D21+D23+(D25)+D27+D29+D31+D33+D35)-((D41+D47+(D43*3%))*12) -> 0 | L27: =Enquiry!$F$83 -> 0 | M27: =L27*K27 -> 0
C29: LTD Company Directors Remuneration | J29: APP2 | K29: =(F21+F23+(F25)+F27+F29+F31+F33+F35)-((F41+F47+(F43*3%))*12) -> 0 | L29: =Enquiry!$K$83 -> 0 | M29: =L29*K29 -> 0
C31: LTD Company Gross Dividend + land prop | D31: =Enquiry!U60+Enquiry!U61 -> 0 | F31: =Enquiry!U63+Enquiry!U64 -> 0 | G31: =+Enquiry!U66+Enquiry!U67 -> 0 | H31: =+Enquiry!U69+Enquiry!U70 -> 0 | J31: APP3 | K31: =(G21+G23+(G25)+G27+G29+G31+G33+G35)-((G41+G47+(G43*3%))*12) -> 0 | L31: =Enquiry!$P$83 -> 0 | M31: =L31*K31 -> 0
C33: Retired -Annual Gross Pension | J33: APP4 | K33: =(H21+H23+(H25)+H27+H29+H31+H33+H35)-((H41+H47+(H43*3%))*12) -> 0 | L33: =Enquiry!$U$83 -> 0 | M33: =L33*K33 -> 0
C35: Acceptable other income | D35: =Enquiry!$E$74 -> 0 | F35: =Enquiry!$E$75 -> 0 | G35: =Enquiry!$E$76 -> 0 | H35: =Enquiry!$E$77 -> 0
C37: Verified (monthly) Net Income | D37: =Enquiry!F80 -> 0 | F37: =Enquiry!K80 -> 0 | G37: =+Enquiry!P80 -> 0 | H37: =+Enquiry!U80 -> 0
B39: Expenditure
B41: done at 50% | C41: Monthly Loan/HP/Lease Payments | D41: =Enquiry!G90 -> 0 | F41: =Enquiry!G96 -> 0 | G41: =Enquiry!G102 -> 0 | H41: =Enquiry!G108 -> 0 | J41: Income for multiple | K41: =SUM(K27:K33) -> 0
B43: TOTAL overdraft, store & credit card balances outstanding | D43: =Enquiry!S89 -> 0 | F43: =Enquiry!S95 -> 0 | G43: =Enquiry!S101 -> 0 | H43: =Enquiry!S107 -> 0
C45: Child Costs | D45: =Enquiry!G91 -> 0 | F45: =Enquiry!G97 -> 0 | G45: =Enquiry!G103 -> 0 | H45: =Enquiry!G109 -> 0
C47: Monthly payment of other mortgages | D47: =Enquiry!S92 -> 0 | F47: =Enquiry!S98 -> 0 | G47: =Enquiry!S104 -> 0 | H47: =Enquiry!S110 -> 0
C49: Student Loans
C51: Pension
C53: Ground rent/Service charge | D53: =Enquiry!S91 -> 0 | F53: =Enquiry!S97 -> 0 | G53: =Enquiry!S103 -> 0 | H53: =Enquiry!S109 -> 0
C55: Other Expenditure | D55: =Enquiry!G92 -> 0 | F55: =Enquiry!G98 -> 0 | G55: =Enquiry!G104 -> 0 | H55: =Enquiry!G110 -> 0
C60: MAXIMUM LOAN | D60: =INDEX($K$27:$K$33,MATCH(LARGE($M$27:$M$33,3),$M$27:$M$33,0))+INDEX($K$27:$K$33,MATCH(LARGE($M$27:$M$33,4),$M$27:$M$33,0))+(LARGE($M$27:$M$33,1)+LARGE($M$27:$M$33,2)) -> 0
C62: Stressed interest rate | D62: ='Mortgage Repayments (E)'!J15 -> 
C63: Net free pay stressed | D63: =($D$37+$F$37+G37+H37)-((D66+((D43+F43+G43+H43)*3%)+(D41+D45+D47+D49+D51+D53+D55+F41+F45+F47+F49+F51+F53+F55+D65+G41+G45+G47+G49+G51+G53+G55+H41+H45+H47+H49+H51+H53+H55))) ->  | F63: =IF(D63>=((D37+F37+G37+H37)*5%), "Pass", "Decline") -> 
C64: % net stressed free pay | D64: =D63/(D37+F37+G37+H37) -> 
C65: Mortgage payment | D65: ='Mortgage Repayments (E)'!J4 -> 
C66: ONS for area | D66: =Enquiry!$AA$34 -> 0
B82: 1
B83: 2
B84: 3

Sheet Tax Calculator (hidden)
B2: Income Tax (England) | G2: Income Tax (Scotland)
B3: Band | C3: Upper Limit | D3: Rate | G3: Band | H3: Upper Limit | I3: Rate | L3: National Insurance
B4: Personal Allowance | C4: 12570 | D4: 0 | G4: Personal Allowance | H4: 12570 | I4: 0 | L4: Band | M4: Upper Limit | N4: Rate
B5: Basic Rate | C5: 50270 | D5: 0.2 | G5: Starter rate | H5: 15397 | I5: 0.19 | L5: Primary threshold | M5: 12570 | N5: 0
B6: Higher Rate | C6: 125140 | D6: 0.4 | G6: Basic rate | H6: 27491 | I6: 0.2 | L6: Upper earnings limit | M6: 50270 | N6: 0.08
B7: Additional Rate | D7: 0.45 | G7: Intermediate rate | H7: 43662 | I7: 0.21 | L7: Additional Rate | N7: 0.02
G8: Higher rate | H8: 75000 | I8: 0.42
G9: Advanced rate | H9: 125140 | I9: 0.45
G10: Top rate | I10: 0.48
E12: Applicant 1 | J12: Applicant 2 | O12: Applicant 3 | T12: Applicant 4
D13: Gross Annual Income (After Deductions) | E13: =Enquiry!X47+Enquiry!U46 -> 0 | I13: Gross Annual Income (After Deductions) | J13: =Enquiry!X49+Enquiry!U49 -> 0 | N13: Gross Annual Income (After Deductions) | O13: =Enquiry!X51+Enquiry!U52 -> 0 | S13: Gross Annual Income (After Deductions) | T13: =Enquiry!X53+Enquiry!U55 -> 0
D14: Before Deductions | E14: =E13+Enquiry!R46 -> 0 | I14: Before Deductions | J14: =J13+Enquiry!R49 -> 0 | N14: Before Deductions | O14: =O13+Enquiry!R52 -> 0 | S14: Before Deductions | T14: =T13+Enquiry!R55 -> 0
B16: Bands (England) | C16: Upper Limit | D16: Rate | E16: Tax Amount | G16: Bands (England) | H16: Upper Limit | I16: Rate | J16: Tax Amount | L16: Bands (England) | M16: Upper Limit | N16: Rate | O16: Tax Amount | Q16: Bands (England) | R16: Upper Limit | S16: Rate | T16: Tax Amount
B17: Personal Allowance | C17: =IF(E13>100000,IF(E13<$C$6,$C$4-(E13-100000)/2,0),$C$4) -> 12570 | D17: =$D$4 -> 0 | E17: =MIN(E$13,C17)*-D17 -> 0 | G17: Personal Allowance | H17: =IF(J13>100000,IF(J13<$C$6,$C$4-(J13-100000)/2,0),$C$4) -> 12570 | I17: =$D$4 -> 0 | J17: =MIN(J$13,H17)*-I17 -> 0 | L17: Personal Allowance | M17: =IF(O13>100000,IF(O13<$C$6,$C$4-(O13-100000)/2,0),$C$4) -> 12570 | N17: =$D$4 -> 0 | O17: =MIN(O$13,M17)*-N17 -> 0 | Q17: Personal Allowance | R17: =IF(T13>100000,IF(T13<$C$6,$C$4-(T13-100000)/2,0),$C$4) -> 12570 | S17: =$D$4 -> 0 | T17: =MIN(T$13,R17)*-S17 -> 0
B18: Basic Rate | C18: =$C$5-$C$4+C$17 -> 50270 | D18: =$D$5 -> 0.2 | E18: =MAX(0,MIN(E$13,C18)-C17)*-D18 -> 0 | G18: Basic Rate | H18: =$C$5-$C$4+H$17 -> 50270 | I18: =$D$5 -> 0.2 | J18: =MAX(0,MIN(J$13,H18)-H17)*-I18 -> 0 | L18: Basic Rate | M18: =$C$5-$C$4+M$17 -> 50270 | N18: =$D$5 -> 0.2 | O18: =MAX(0,MIN(O$13,M18)-M17)*-N18 -> 0 | Q18: Basic Rate | R18: =$C$5-$C$4+R$17 -> 50270 | S18: =$D$5 -> 0.2 | T18: =MAX(0,MIN(T$13,R18)-R17)*-S18 -> 0
B19: Higher Rate | C19: =$C$6 -> 125140 | D19: =$D$6 -> 0.4 | E19: =MAX(0,MIN(E$13,C19)-C18)*-D19 -> 0 | G19: Higher Rate | H19: =$C$6 -> 125140 | I19: =$D$6 -> 0.4 | J19: =MAX(0,MIN(J$13,H19)-H18)*-I19 -> 0 | L19: Higher Rate | M19: =$C$6 -> 125140 | N19: =$D$6 -> 0.4 | O19: =MAX(0,MIN(O$13,M19)-M18)*-N19 -> 0 | Q19: Higher Rate | R19: =$C$6 -> 125140 | S19: =$D$6 -> 0.4 | T19: =MAX(0,MIN(T$13,R19)-R18)*-S19 -> 0
B20: Additional Rate | D20: =$D$7 -> 0.45 | E20: =MAX(0,E$13-C19)*-D20 -> 0 | G20: Additional Rate | I20: =$D$7 -> 0.45 | J20: =MAX(0,J$13-H19)*-I20 -> 0 | L20: Additional Rate | N20: =$D$7 -> 0.45 | O20: =MAX(0,O$13-M19)*-N20 -> 0 | Q20: Additional Rate | S20: =$D$7 -> 0.45 | T20: =MAX(0,T$13-R19)*-S20 -> 0
E21: =SUM(E17:E20) -> 0 | J21: =SUM(J17:J20) -> 0 | O21: =SUM(O17:O20) -> 0 | T21: =SUM(T17:T20) -> 0
B22: Bands (Scotland) | G22: Bands (Scotland) | L22: Bands (Scotland) | Q22: Bands (Scotland)
B23: Personal Allowance | C23: =C17 -> 12570 | D23: =$I$4 -> 0 | E23: =MIN(E$13,C23)*-D23 -> 0 | G23: Personal Allowance | H23: =H17 -> 12570 | I23: =$I$4 -> 0 | J23: =MIN(J$13,H23)*-I23 -> 0 | L23: Personal Allowance | M23: =M17 -> 12570 | N23: =$I$4 -> 0 | O23: =MIN(O$13,M23)*-N23 -> 0 | Q23: Personal Allowance | R23: =R17 -> 12570 | S23: =$I$4 -> 0 | T23: =MIN(T$13,R23)*-S23 -> 0
B24: Starter rate | C24: =$H5-$H$4+C$23 -> 15397 | D24: =$I$5 -> 0.19 | E24: =MAX(0,MIN(E$13,C24)-C23)*-D24 -> 0 | G24: Starter rate | H24: =$H5-$H$4+H$23 -> 15397 | I24: =$I$5 -> 0.19 | J24: =MAX(0,MIN(J$13,H24)-H23)*-I24 -> 0 | L24: Starter rate | M24: =$H5-$H$4+M$23 -> 15397 | N24: =$I$5 -> 0.19 | O24: =MAX(0,MIN(O$13,M24)-M23)*-N24 -> 0 | Q24: Starter rate | R24: =$H5-$H$4+R$23 -> 15397 | S24: =$I$5 -> 0.19 | T24: =MAX(0,MIN(T$13,R24)-R23)*-S24 -> 0
B25: Basic rate | C25: =$H6-$H$4+C$23 -> 27491 | D25: =$I$6 -> 0.2 | E25: =MAX(0,MIN(E$13,C25)-C24)*-D25 -> 0 | G25: Basic rate | H25: =$H6-$H$4+H$23 -> 27491 | I25: =$I$6 -> 0.2 | J25: =MAX(0,MIN(J$13,H25)-H24)*-I25 -> 0 | L25: Basic rate | M25: =$H6-$H$4+M$23 -> 27491 | N25: =$I$6 -> 0.2 | O25: =MAX(0,MIN(O$13,M25)-M24)*-N25 -> 0 | Q25: Basic rate | R25: =$H6-$H$4+R$23 -> 27491 | S25: =$I$6 -> 0.2 | T25: =MAX(0,MIN(T$13,R25)-R24)*-S25 -> 0
B26: Intermediate rate | C26: 43662 | D26: =$I$7 -> 0.21 | E26: =MAX(0,MIN(E$13,C26)-C25)*-D26 -> 0 | G26: Intermediate rate | H26: 43662 | I26: =$I$7 -> 0.21 | J26: =MAX(0,MIN(J$13,H26)-H25)*-I26 -> 0 | L26: Intermediate rate | M26: 43662 | N26: =$I$7 -> 0.21 | O26: =MAX(0,MIN(O$13,M26)-M25)*-N26 -> 0 | Q26: Intermediate rate | R26: 43662 | S26: =$I$7 -> 0.21 | T26: =MAX(0,MIN(T$13,R26)-R25)*-S26 -> 0
B27: Higher rate | C27: 75000 | D27: =$I$8 -> 0.42 | E27: 0 | G27: Higher rate | H27: 75000 | I27: =$I$8 -> 0.42 | J27: =MAX(0,MIN(J$13,H27)-H26)*-I27 -> 0 | L27: Higher rate | M27: 75000 | N27: =$I$8 -> 0.42 | O27: =MAX(0,MIN(O$13,M27)-M26)*-N27 -> 0 | Q27: Higher rate | R27: 75000 | S27: =$I$8 -> 0.42 | T27: =MAX(0,MIN(T$13,R27)-R26)*-S27 -> 0
B28: Advanced rate | C28: =$H$9 -> 125140 | D28: =$I$9 -> 0.45 | E28: =MAX(0,MIN(E$13,C28)-C27)*-D28 -> 0 | G28: Advanced rate | H28: =$H$9 -> 125140 | I28: =$I$9 -> 0.45 | J28: =MAX(0,MIN(J$13,H28)-H27)*-I28 -> 0 | L28: Advanced rate | M28: =$H$9 -> 125140 | N28: =$I$9 -> 0.45 | O28: =MAX(0,MIN(O$13,M28)-M27)*-N28 -> 0 | Q28: Advanced rate | R28: =$H$9 -> 125140 | S28: =$I$9 -> 0.45 | T28: =MAX(0,MIN(T$13,R28)-R27)*-S28 -> 0
B29: Top rate | D29: =$I$10 -> 0.48 | E29: =MAX(0,E$13-C28)*-D29 -> 0 | G29: Top rate | I29: =$I$10 -> 0.48 | J29: =MAX(0,J$13-H28)*-I29 -> 0 | L29: Top rate | N29: =$I$10 -> 0.48 | O29: =MAX(0,O$13-M28)*-N29 -> 0 | Q29: Top rate | S29: =$I$10 -> 0.48 | T29: =MAX(0,T$13-R28)*-S29 -> 0
E30: =SUM(E23:E29) -> 0 | J30: =SUM(J23:J29) -> 0 | O30: =SUM(O23:O29) -> 0 | T30: =SUM(T23:T29) -> 0
B32: Primary threshold | C32: =$M$5 -> 12570 | D32: =$N$5 -> 0 | E32: =MIN(E$14,C32)*-D32 -> 0 | G32: Primary threshold | H32: =$M$5 -> 12570 | I32: =$N$5 -> 0 | J32: =MIN(J$14,H32)*-I32 -> 0 | L32: Primary threshold | M32: =$M$5 -> 12570 | N32: =$N$5 -> 0 | O32: =MIN(O$14,M32)*-N32 -> 0 | Q32: Primary threshold | R32: =$M$5 -> 12570 | S32: =$N$5 -> 0 | T32: =MIN(T$14,R32)*-S32 -> 0
B33: Upper earnings limit | C33: =$M$6 -> 50270 | D33: =$N$6 -> 0.08 | E33: =MAX(0,MIN(E$14,C33)-C32)*-D33 -> 0 | G33: Upper earnings limit | H33: =$M$6 -> 50270 | I33: =$N$6 -> 0.08 | J33: =MAX(0,MIN(J$14,H33)-H32)*-I33 -> 0 | L33: Upper earnings limit | M33: =$M$6 -> 50270 | N33: =$N$6 -> 0.08 | O33: =MAX(0,MIN(O$14,M33)-M32)*-N33 -> 0 | Q33: Upper earnings limit | R33: =$M$6 -> 50270 | S33: =$N$6 -> 0.08 | T33: =MAX(0,MIN(T$14,R33)-R32)*-S33 -> 0
B34: Additional Rate | D34: =$N$7 -> 0.02 | E34: =MAX(0,E$14-C33)*-D34 -> 0 | G34: Additional Rate | I34: =$N$7 -> 0.02 | J34: =MAX(0,J$14-H33)*-I34 -> 0 | L34: Additional Rate | N34: =$N$7 -> 0.02 | O34: =MAX(0,O$14-M33)*-N34 -> 0 | Q34: Additional Rate | S34: =$N$7 -> 0.02 | T34: =MAX(0,T$14-R33)*-S34 -> 0
E35: =SUM(E32:E34) -> 0 | J35: =SUM(J32:J34) -> 0 | O35: =SUM(O32:O34) -> 0 | T35: =SUM(T32:T34) -> 0
B37: Location: | E37: =IF(Enquiry!$C$45="Yes","Scotland","England") -> England | G37: Location: | J37: =IF(Enquiry!$C$48="Yes","Scotland","England") -> England | L37: Location: | O37: =IF(Enquiry!$C$51="Yes","Scotland","England") -> England | Q37: Location: | T37: =IF(Enquiry!$C$54="Yes","Scotland","England") -> England
B38: Monthly Income: | E38: =IF(OR(ISBLANK(E13),ISBLANK(E14)),0,(E13+E35+IF(E37="England",E21,E30))/12) -> 0 | G38: Monthly Income: | J38: =IF(OR(ISBLANK(J13),ISBLANK(J14)),0,(J13+J35+IF(J37="England",J21,J30))/12) -> 0 | L38: Monthly Income: | O38: =IF(OR(ISBLANK(O13),ISBLANK(O14)),0,(O13+O35+IF(O37="England",O21,O30))/12) -> 0 | Q38: Monthly Income: | T38: =IF(OR(ISBLANK(T13),ISBLANK(T14)),0,(T13+T35+IF(T37="England",T21,T30))/12) -> 0
